fUSD/lending_fUSD_20240524
["ID","MTS","AMOUNT","RATE_DAILY","PERIOD"]
[327846532,1716555038596,-150.96,0.0001299,2]
[327846533,1716555038608,-150.96,0.0001299,2]
[327846534,1716555038620,-150.96,0.0001299,2]
[327846535,1716555038629,-150.96,0.0001299,2]
[327846536,1716555038639,-150.96,0.0001299,2]
[327846537,1716555038651,-150.96,0.0001299,2]
[327846538,1716555038661,-150.96,0.0001299,2]
[327846539,1716555038670,-150.96,0.0001299,2]
[327846540,1716555038679,-150.96,0.0001299,2]
[327846541,1716555038689,-150.96,0.0001299,2]
[327846542,1716555038699,-150.96,0.0001299,2]
[327846543,1716555038708,-150.96,0.0001299,2]
[327846544,1716555038718,-299.84501484,0.00012998,2]
[327846545,1716555038728,-326.03857362,0.00012998,2]
[327846546,1716555038737,-267.89346007,0.00012998,2]
[327846547,1716555038747,-150.01,0.00012999,2]
[327846548,1716555038757,-2127.64269845,0.00012999,2]
[327846549,1716555038767,-1089.55055981,0.00012999,3]
[327846550,1716555038777,-1089.55055981,0.00012999,3]
[327846551,1716555038787,-344.95167672,0.00012999,2]
[327846552,1716555038796,-150.0,0.00012999,2]
[327846553,1716555038807,-150.0,0.00012999,2]
[327846554,1716555038816,-152.67259743,0.00012999,2]
[327846555,1716555038826,-565.0,0.00013,2]
[327846556,1716555038836,-1176305.21470541,0.00013,2]
[327846557,1716555038845,-111706.80280439,0.00013,2]
[327846558,1716555038855,-276.571,0.00013,2]
[327846559,1716555038865,-250.0,0.00013,2]
[327846560,1716555038875,-194.7,0.00013,2]
[327846561,1716555038884,-163.593,0.00013,2]
[327846562,1716555038895,-156.494,0.00013,2]
[327846563,1716555038906,-224.072,0.00013,2]
[327846564,1716555038915,-235.98,0.00013,2]
[327846565,1716555038925,-192.0,0.00013,2]
[327846566,1716555038935,-150.232,0.00013,2]
[327846567,1716555038946,-166.0,0.00013,2]
[327846568,1716555038955,-150.361,0.00013,2]
[327846569,1716555038964,-167.933,0.00013,2]
[327846570,1716555038976,-246.304,0.00013,2]
[327846571,1716555038987,-6375078.89484404,0.00013,2]
[327846572,1716555039000,-1023268.83267899,0.00013,2]
[327846573,1716555039020,-67470.20520138,0.00013,2]
[327846574,1716555039048,-202766.24625026,0.00013,2]
[327846575,1716555039060,-854.32737745,0.00013,2]
[327846576,1716555039072,-6465.31924058,0.00013,2]
[327846577,1716555039085,-300.001004,0.00013,2]
[327846578,1716555039140,-204159.8458148,0.00013,2]
[327846579,1716555039162,-17936.93518799,0.00013,2]
[327846580,1716555039174,-496.816951,0.00013,2]
[327846581,1716555039186,-4852.6012,0.00013,2]
[327846582,1716555039198,-8315.23,0.00013,2]
[327846588,1716555041424,-3364.15,0.00013,2]
[327846589,1716555041435,-347.72536569,0.00013,2]
[327846590,1716555041447,-530.335,0.00013,2]
[327846591,1716555041498,-6131.5,0.00013,2]
[327846592,1716555041509,-303.27304,0.00013,2]
[327846593,1716555041520,-4034.05795687,0.00013,2]
[327846594,1716555041614,-178428.55144315,0.00013,2]
[327846595,1716555041626,-1641.30252,0.00013,2]
[327846596,1716555041638,-774.040005,0.00013,2]
[327846597,1716555041651,-60176.41910016,0.00013,2]
[327846605,1716555042857,-24639.40372049,0.00013,2]
[327846615,1716555043161,-33052.21316881,0.00013,2]
[327846620,1716555043174,-1439.08969512,0.00013,2]
[327846623,1716555043186,-2039.44627832,0.00013,2]
[327846627,1716555043199,-1732.275,0.00013,2]
[327846630,1716555043212,-2006.016008,0.00013,2]
[327846633,1716555043223,-1508436.41097543,0.00013,2]
[327846650,1716555044660,-5893.04789687,0.00013,2]
[327846651,1716555044680,-926.12701985,0.00013,2]
[327846652,1716555044693,-14006.4,0.00013,2]
[327846654,1716555045941,-2741.43912424,0.00013,2]
[327846655,1716555046024,-629.27928532,0.00013,2]
[327846656,1716555046247,-439.72469089,0.00013,2]
[327846657,1716555046259,-557.28,0.00013,2]
[327846674,1716555108790,-516.62800356,0.00012346,2]
[327846675,1716555108815,-263.25204484,0.00012347,2]
[327846676,1716555108842,-226.12850537,0.00012347,2]
[327846677,1716555108866,-1296.53199475,0.00012348,2]
[327846678,1716555108891,-178.39288205,0.00012869,2]
[327846679,1716555108915,-13408.49259032,0.000129,2]
[327846680,1716555108940,-338.11683754,0.000129,2]
[327846681,1716555108963,-3772.45714157,0.00012998,2]
[327846689,1716555355697,-340.0,0.0001964,15]
[327846690,1716555355746,-340.0,0.0001965,15]
[327846691,1716555355795,-340.0,0.0001966,15]
[327846692,1716555355842,-150.5,0.0001967,15]
[327846693,1716555355890,-1453.0,0.0001967,15]
[327846694,1716555355935,-150.5,0.0001968,15]
[327846695,1716555356085,-1453.0,0.0001968,15]
[327846696,1716555356131,-150.5,0.0001969,15]
[327846697,1716555356176,-1453.0,0.0001969,15]
[327846698,1716555356220,-243.0,0.000197,15]
[327846699,1716555356266,-243.0,0.0001971,15]
[327846700,1716555356310,-243.0,0.0001972,15]
[327846701,1716555356355,-160.5,0.0001999,15]
[327846702,1716555356398,-2000.0,0.0002,15]
[327846703,1716555356457,-150.68,0.0002399,15]
[327846704,1716555356551,-511129.32,0.00024,15]
[327846705,1716555421786,157.87,0.00027068,30]
[327846707,1716555845171,452.19863709,9.883e-05,2]
[327846708,1716555855927,226.12850537,9.883e-05,2]
[327846709,1716555856910,1070.0,9.884e-05,2]
[327846710,1716555857055,290.59150024,9.883e-05,2]
[327846712,1716555861717,3286.97999917,9.883e-05,2]
[327846713,1716555863208,267.96249102,9.883e-05,2]
[327846714,1716555871532,2549.05213827,7.412e-05,2]
[327846715,1716555873002,7521.99858144,9.883e-05,2]
[327846716,1716555873916,226.12850537,9.749e-05,2]
[327846717,1716555876609,155.0,9.883e-05,2]
[327846718,1716555881149,20229.281755,9.883e-05,2]
[327846720,1716555889531,483.60503842,7.412e-05,2]
[327846721,1716555890945,7521.99858144,9.883e-05,2]
[327846722,1716555891918,226.12850537,9.749e-05,2]
[327846723,1716555894677,155.0,9.883e-05,2]
[327846724,1716555897020,37536.78114392,9.884e-05,2]
[327846725,1716555897128,20219.75876436,9.883e-05,2]
[327846726,1716555902320,19739.35172492,9.883e-05,2]
[327846727,1716555902551,289.33910277,9.883e-05,2]
[327846728,1716555907926,226.12850537,9.749e-05,2]
[327846729,1716555910961,3994.18314134,9.883e-05,2]
[327846730,1716555916356,19739.35172492,9.883e-05,2]
[327846731,1716555920546,179.64984845,9.883e-05,2]
[327846732,1716555921894,346.57302212,9.883e-05,2]
[327846734,1716555926147,226.12850537,9.749e-05,2]
[327846735,1716555926734,85118.70027826,9.883e-05,2]
[327846736,1716555948742,157.87,0.00027068,30]
[327846737,1716555950282,226.12850537,7.411e-05,2]
[327846738,1716555964277,226.12850537,7.411e-05,2]
[327846739,1716555973129,260086.99380109,7.411e-05,2]
[327846740,1716555973475,-297.93495178,7.411e-05,2]
[327846741,1716555974891,-245.76381709,7.411e-05,2]
[327846742,1716555978944,-177.44,7.411e-05,2]
[327846743,1716555979891,-169.13285556,7.411e-05,2]
[327846744,1716555983060,-155.0,7.411e-05,2]
[327846745,1716555983441,-150.0,7.411e-05,2]
[327846746,1716555983914,-150.0,7.411e-05,2]
[327846747,1716555984838,-150.0,7.411e-05,2]
[327846748,1716555988387,-150.0,7.411e-05,2]
[327846749,1716555989100,-150.0,7.411e-05,2]
[327846750,1716555989770,-150.0,7.411e-05,2]
[327846751,1716555993046,-150.0,5.557e-05,2]
[327846767,1716556150925,-837.07031889,5.547e-05,2]
[327846768,1716556150947,-267.96249102,5.547e-05,2]
[327846769,1716556150968,-326.15186733,5.548e-05,2]
[327846770,1716556150989,-3010.74416602,5.549e-05,2]
[327846771,1716556151009,-263.25204484,5.549e-05,2]
[327846772,1716556151031,-150.0,5.549e-05,2]
[327846773,1716556151053,-2814.6457293,5.55e-05,2]
[327846774,1716556151074,-1064.69028387,5.55e-05,2]
[327846775,1716556151094,-155.0,5.551e-05,2]
[327846777,1716556151115,-4463.0,5.551e-05,2]
[327846778,1716556151135,-452.19863709,5.551e-05,2]
[327846779,1716556151157,-43334.51245494,5.553e-05,2]
[327846780,1716556151180,-175138.7720067,5.557e-05,2]
[327846795,1716556232045,-2549.05213827,4.168e-05,2]
[327846796,1716556232055,-226.12850537,4.943e-05,2]
[327846797,1716556232064,-194.03260158,4.944e-05,2]
[327846798,1716556232074,-3286.97999917,5e-05,2]
[327846799,1716556232083,-267.96249102,5.554e-05,2]
[327846800,1716556232092,-2814.6457293,5.554e-05,2]
[327846801,1716556232102,-2957.78310343,5.555e-05,2]
[327846802,1716556232112,-221.41228681,5.555e-05,2]
[327846803,1716556232121,-325.92527991,5.555e-05,2]
[327846804,1716556232131,-246.96837777,5.556e-05,2]
[327846805,1716556232143,-240.7801675,5.556e-05,2]
[327846806,1716556232154,-2882.13226303,5.556e-05,2]
[327846807,1716556232164,-155.81695383,5.556e-05,2]
[327846808,1716556232173,-372711.35506512,5.557e-05,2]
[327846809,1716556232183,-7521.99858144,5.557e-05,2]
[327846810,1716556232193,-346.57302212,5.557e-05,2]
[327846811,1716556232202,-19739.35172492,5.557e-05,2]
[327846812,1716556232212,-20229.281755,5.557e-05,2]
[327846813,1716556232221,-289.33910277,5.557e-05,2]
[327846814,1716556232231,-150.0,5.557e-05,2]
[327846815,1716556232242,-150.0,5.557e-05,2]
[327846816,1716556232252,-150.0,5.557e-05,2]
[327846817,1716556232262,-155.0,5.557e-05,2]
[327846818,1716556232271,-150.0,6.104e-05,2]
[327846819,1716556232282,-169.13285556,7.039e-05,2]
[327846820,1716556232291,-177.44,7.411e-05,2]
[327846821,1716556232300,-155.1,8.982e-05,2]
[327846822,1716556232310,-633.59,9.041e-05,2]
[327846823,1716556232320,-5565.87580621,9.881e-05,2]
[327846824,1716556232330,-234.25383046,9.881e-05,2]
[327846825,1716556232340,-2222.64085019,9.881e-05,2]
[327846826,1716556232349,-1214.44476273,9.881e-05,2]
[327846827,1716556232359,-8000.0,9.881e-05,2]
[327846828,1716556232368,-155.0,9.881e-05,2]
[327846829,1716556232379,-155.1408323,9.881e-05,2]
[327846830,1716556232391,-160.54462895,9.881e-05,2]
[327846831,1716556232400,-489.06715365,9.881e-05,2]
[327846832,1716556232410,-2329.66280246,9.881e-05,2]
[327846833,1716556232419,-1996.91763044,9.881e-05,2]
[327846834,1716556232428,-446.62902304,9.881e-05,2]
[327846835,1716556232437,-513.39495988,9.881e-05,2]
[327846836,1716556232447,-623.47628621,9.882e-05,2]
[327846837,1716556232456,-155.06154647,0.0001,2]
[327846838,1716556232465,-582.29367018,0.0001,2]
[327846839,1716556232474,-582.29367018,0.0001,2]
[327846840,1716556232483,-582.29367018,0.0001,2]
[327846841,1716556232492,-582.29367018,0.0001,2]
[327846842,1716556232501,-582.29367018,0.0001,2]
[327846843,1716556232510,-582.29367018,0.0001,2]
[327846844,1716556232520,-582.29367018,0.0001,2]
[327846845,1716556232529,-582.29367018,0.0001,2]
[327846846,1716556232539,-582.29367018,0.0001,2]
[327846847,1716556232549,-582.29367018,0.0001,2]
[327846848,1716556232558,-582.29367018,0.0001,2]
[327846849,1716556232568,-582.29367018,0.0001,2]
[327846850,1716556232577,-582.29367018,0.0001,2]
[327846851,1716556232587,-582.29367018,0.0001,2]
[327846852,1716556232596,-582.29367018,0.0001,2]
[327846853,1716556232605,-582.29367018,0.0001,2]
[327846854,1716556232614,-582.29367018,0.0001,2]
[327846855,1716556232623,-582.29367018,0.0001,2]
[327846856,1716556232634,-582.29367018,0.0001,2]
[327846857,1716556232645,-582.29367018,0.0001,2]
[327846858,1716556232655,-582.29367018,0.0001,2]
[327846859,1716556232664,-582.29367018,0.0001,2]
[327846860,1716556232674,-582.29367018,0.0001,2]
[327846861,1716556232683,-582.29367018,0.0001,2]
[327846862,1716556232692,-582.29367018,0.0001,2]
[327846863,1716556232702,-582.29367018,0.0001,2]
[327846864,1716556232711,-582.29367018,0.0001,2]
[327846865,1716556232721,-582.29367018,0.0001,2]
[327846866,1716556232843,-582.29367018,0.0001,2]
[327846867,1716556232856,-582.29367018,0.0001,2]
[327846868,1716556232868,-582.29367018,0.0001,2]
[327846869,1716556232878,-582.29367018,0.0001,2]
[327846870,1716556232889,-582.29367018,0.0001,2]
[327846871,1716556232898,-582.29367018,0.0001,2]
[327846872,1716556232908,-582.29367018,0.0001,2]
[327846873,1716556232918,-582.29367018,0.0001,2]
[327846874,1716556232927,-582.29367018,0.0001,2]
[327846875,1716556232936,-582.29367018,0.0001,2]
[327846876,1716556232945,-582.29367018,0.0001,2]
[327846877,1716556232955,-582.29367018,0.0001,2]
[327846878,1716556232965,-582.29367018,0.0001,2]
[327846879,1716556232975,-582.29367018,0.0001,2]
[327846880,1716556232984,-582.29367018,0.0001,2]
[327846881,1716556232993,-582.29367018,0.0001,2]
[327846882,1716556233002,-582.29367018,0.0001,2]
[327846883,1716556233012,-582.29367018,0.0001,2]
[327846884,1716556233021,-582.29367018,0.0001,2]
[327846885,1716556233031,-582.29367018,0.0001,2]
[327846886,1716556233041,-582.29367018,0.0001,2]
[327846887,1716556233052,-582.29367018,0.0001,2]
[327846888,1716556233062,-582.29367018,0.0001,2]
[327846889,1716556233071,-582.29367018,0.0001,2]
[327846890,1716556233080,-582.29367018,0.0001,2]
[327846891,1716556233092,-582.29367018,0.0001,2]
[327846892,1716556233101,-582.29367018,0.0001,2]
[327846893,1716556233111,-582.29367018,0.0001,2]
[327846894,1716556233120,-582.29367018,0.0001,2]
[327846895,1716556233129,-582.29367018,0.0001,2]
[327846896,1716556233139,-582.29367018,0.0001,2]
[327846897,1716556233148,-582.29367018,0.0001,2]
[327846898,1716556233157,-582.29367018,0.0001,2]
[327846899,1716556233166,-582.29367018,0.0001,2]
[327846900,1716556233176,-582.29367018,0.0001,2]
[327846901,1716556233185,-582.29367018,0.0001,2]
[327846902,1716556233195,-582.29367018,0.0001,2]
[327846903,1716556233204,-582.29367018,0.0001,2]
[327846904,1716556233213,-582.29367018,0.0001,2]
[327846905,1716556233222,-582.29367018,0.0001,2]
[327846906,1716556233232,-582.29367018,0.0001,2]
[327846907,1716556233241,-582.29367018,0.0001,2]
[327846908,1716556233251,-582.29367018,0.0001,2]
[327846909,1716556233260,-582.29367018,0.0001,2]
[327846910,1716556233269,-582.29367018,0.0001,2]
[327846911,1716556233278,-582.29367018,0.0001,2]
[327846912,1716556233288,-582.29367018,0.0001,2]
[327846913,1716556233297,-582.29367018,0.0001,2]
[327846914,1716556233307,-582.29367018,0.0001,2]
[327846915,1716556233316,-582.29367018,0.0001,2]
[327846916,1716556233325,-582.29367018,0.0001,2]
[327846917,1716556233335,-582.29367018,0.0001,2]
[327846918,1716556233344,-582.29367018,0.0001,2]
[327846919,1716556233353,-582.29367018,0.0001,2]
[327846920,1716556233362,-582.29367018,0.0001,2]
[327846921,1716556233371,-582.29367018,0.0001,2]
[327846922,1716556233380,-582.29367018,0.0001,2]
[327846923,1716556233391,-582.29367018,0.0001,2]
[327846924,1716556233400,-582.29367018,0.0001,2]
[327846925,1716556233409,-582.29367018,0.0001,2]
[327846926,1716556233419,-582.29367018,0.0001,2]
[327846927,1716556233428,-582.29367018,0.0001,2]
[327846928,1716556233437,-582.29367018,0.0001,2]
[327846929,1716556233447,-582.29367018,0.0001,2]
[327846930,1716556233456,-582.29367018,0.0001,2]
[327846931,1716556233465,-582.29367018,0.0001,2]
[327846932,1716556233475,-582.29367018,0.0001,2]
[327846933,1716556233484,-582.29367018,0.0001,2]
[327846934,1716556233493,-582.29367018,0.0001,2]
[327846935,1716556233502,-582.29367018,0.0001,2]
[327846936,1716556233511,-582.29367018,0.0001,2]
[327846937,1716556233521,-582.29367018,0.0001,2]
[327846938,1716556233531,-23900.0,0.00010689,2]
[327846939,1716556233541,-1066.72,0.00010878,2]
[327846940,1716556233550,-158.21,0.00010935,2]
[327846941,1716556233559,-842.91,0.00010959,2]
[327846942,1716556233569,-7058.69,0.00011145,2]
[327846943,1716556233578,-250.0,0.00011227,2]
[327846944,1716556233588,-633.59,0.00011305,2]
[327846945,1716556233597,-800.0,0.00011488,2]
[327846946,1716556233607,-870.9,0.00011548,2]
[327846947,1716556233616,-3718.25,0.00011554,2]
[327846948,1716556233626,-250.0,0.00011568,2]
[327846949,1716556233636,-3153.91,0.00011638,2]
[327846950,1716556233646,-164.74,0.00011671,2]
[327846951,1716556233656,-155.25525676,0.00011698,2]
[327846952,1716556233666,-665.02362507,0.00011698,2]
[327846953,1716556233675,-423.50395095,0.00011698,2]
[327846954,1716556233684,-10000.0,0.00011703,2]
[327846955,1716556233694,-999.99,0.00011916,2]
[327846956,1716556233703,-3089.57,0.00012333,2]
[327846957,1716556233713,-200.0,0.00012526,2]
[327846958,1716556233722,-1061.0,0.00012688,2]
[327846959,1716556233731,-289.0,0.00012688,2]
[327846960,1716556233740,-5761.0,0.00012688,2]
[327846961,1716556233750,-37912.0,0.00012688,2]
[327846962,1716556233759,-1466.0,0.00012688,2]
[327846963,1716556233768,-1466.0,0.00012688,2]
[327846964,1716556233781,-532.97680342,0.00012744,2]
[327846965,1716556233792,-499.99,0.000128,2]
[327846966,1716556233801,-159.86649369,0.00012824,2]
[327846967,1716556233811,-182.42156391,0.00012869,2]
[327846968,1716556233820,-2569.54361051,0.0001287,2]
[327846969,1716556233847,-430.45638949,0.0001287,2]
[327846970,1716556233857,-222.58361051,0.00012889,2]
[327846971,1716556233868,-1074.50342781,0.00012889,2]
[327846972,1716556234004,-1415.77310024,0.00012889,2]
[327846973,1716556234014,-2712.86013848,0.00012889,2]
[327846974,1716556234024,-500.0,0.00012896,2]
[327846975,1716556234034,-3743.38774496,0.00012898,2]
[327846976,1716556234043,-3743.38774493,0.00012898,2]
[327846977,1716556234053,-3483.59121139,0.00012898,2]
[327846978,1716556234190,-259.79653354,0.00012898,2]
[327846979,1716556234200,-183.93608026,0.000129,2]
[327846980,1716556234232,-11366.76991974,0.000129,2]
[327846981,1716556234242,-7526.6068,0.000129,2]
[327846982,1716556234252,-2450.0055,0.000129,2]
[327846983,1716556234261,-945.142,0.000129,2]
[327846984,1716556234270,-349.55720967,0.000129,2]
[327846985,1716556234280,-2500.0,0.000129,2]
[327846986,1716556234290,-1536.69176219,0.000129,2]
[327846987,1716556234299,-1536.69176219,0.000129,2]
[327846988,1716556234308,-159.86649368,0.000129,2]
[327846989,1716556234317,-7500.0,0.000129,2]
[327846990,1716556234327,-532.97680342,0.000129,2]
[327846991,1716556234336,-800.0,0.00012924,2]
[327846992,1716556234346,-1625.71350076,0.00012968,2]
[327846993,1716556234440,-800.0,0.00012986,2]
[327846994,1716556234462,-157.26194994,0.00012988,2]
[327846995,1716556234473,-157.26194994,0.0001299,2]
[327846996,1716556234482,-150.96,0.0001299,2]
[327846997,1716556234491,-150.96,0.0001299,2]
[327846998,1716556234501,-150.96,0.0001299,2]
[327846999,1716556234510,-150.96,0.0001299,2]
[327847000,1716556234521,-150.96,0.0001299,2]
[327847001,1716556234531,-150.96,0.0001299,2]
[327847002,1716556234540,-150.96,0.0001299,2]
[327847003,1716556234550,-150.96,0.0001299,2]
[327847004,1716556234559,-150.96,0.0001299,2]
[327847005,1716556234568,-150.96,0.0001299,2]
[327847006,1716556234578,-150.96,0.0001299,2]
[327847007,1716556234591,-150.96,0.0001299,2]
[327847008,1716556234601,-150.96,0.0001299,2]
[327847009,1716556234610,-150.96,0.0001299,2]
[327847010,1716556234621,-150.96,0.0001299,2]
[327847011,1716556234631,-150.96,0.0001299,2]
[327847012,1716556234640,-150.96,0.0001299,2]
[327847013,1716556234650,-150.96,0.0001299,2]
[327847014,1716556234660,-150.96,0.0001299,2]
[327847015,1716556234669,-150.96,0.0001299,2]
[327847016,1716556234679,-150.96,0.0001299,2]
[327847017,1716556234688,-150.96,0.0001299,2]
[327847018,1716556234698,-150.96,0.0001299,2]
[327847019,1716556234707,-150.96,0.0001299,2]
[327847020,1716556234716,-150.96,0.0001299,2]
[327847021,1716556234725,-57.83878836,0.0001299,2]
[327847023,1716556239079,-93.12121164,0.0001299,2]
[327847024,1716556239089,-150.96,0.0001299,2]
[327847025,1716556239098,-150.96,0.0001299,2]
[327847026,1716556239108,-150.96,0.0001299,2]
[327847027,1716556239117,-150.96,0.0001299,2]
[327847028,1716556239127,-150.96,0.0001299,2]
[327847029,1716556239135,-150.96,0.0001299,2]
[327847030,1716556239147,-150.96,0.0001299,2]
[327847031,1716556239156,-150.96,0.0001299,2]
[327847032,1716556239166,-150.96,0.0001299,2]
[327847033,1716556239174,-150.96,0.0001299,2]
[327847034,1716556239183,-150.96,0.0001299,2]
[327847035,1716556239192,-150.96,0.0001299,2]
[327847036,1716556239202,-150.96,0.0001299,2]
[327847037,1716556239211,-150.96,0.0001299,2]
[327847038,1716556239220,-150.96,0.0001299,2]
[327847039,1716556239229,-150.96,0.0001299,2]
[327847040,1716556239238,-150.96,0.0001299,2]
[327847041,1716556239247,-150.96,0.0001299,2]
[327847042,1716556239256,-150.96,0.0001299,2]
[327847043,1716556239266,-150.96,0.0001299,2]
[327847044,1716556239276,-150.96,0.0001299,2]
[327847045,1716556239286,-150.96,0.0001299,2]
[327847046,1716556239295,-150.96,0.0001299,2]
[327847047,1716556239304,-150.96,0.0001299,2]
[327847048,1716556239314,-150.96,0.0001299,2]
[327847049,1716556239324,-150.96,0.0001299,2]
[327847050,1716556239334,-150.96,0.0001299,2]
[327847051,1716556239343,-150.96,0.0001299,2]
[327847052,1716556239352,-654.52860412,0.00012998,2]
[327847053,1716556239362,-428.28701049,0.00012998,2]
[327847054,1716556239371,-535.53037562,0.00012998,2]
[327847055,1716556239380,-1258.86655938,0.00012998,2]
[327847056,1716556239390,-377.89293188,0.00012998,2]
[327847057,1716556239402,-156.60034271,0.00012998,2]
[327847058,1716556239412,-783.52135115,0.00012998,2]
[327847059,1716556239423,-3090.67240736,0.00012998,2]
[327847060,1716556239432,-200.98269384,0.00012998,2]
[327847061,1716556239442,-686.40083079,0.00012998,2]
[327847062,1716556239452,-1008.37073101,0.00012998,2]
[327847063,1716556239461,-281.88330445,0.00012998,2]
[327847064,1716556239471,-155.15810019,0.00012998,2]
[327847065,1716556239482,-299.84501484,0.00012998,2]
[327847066,1716556239492,-83576.45556618,0.00012998,2]
[327847067,1716556239502,-155.76789552,0.00012999,2]
[327847068,1716556239512,-1089.55055981,0.00012999,3]
[327847069,1716556239522,-1089.55055981,0.00012999,3]
[327847070,1716556239533,-2127.64269845,0.00012999,2]
[327847071,1716556239543,-150.01,0.00012999,2]
[327847072,1716556239552,-344.95167672,0.00012999,2]
[327847073,1716556239562,-150.0,0.00012999,2]
[327847074,1716556239572,-150.0,0.00012999,2]
[327847075,1716556239582,-152.67259743,0.00012999,2]
[327847076,1716556239593,-572.0,0.00013,2]
[327847077,1716556239602,-911247.52644931,0.00013,2]
[327847078,1716556239618,-277969.96694358,0.00013,2]
[327847079,1716556240330,-6419269.650486,0.00013,2]
[327847080,1716556240340,-1355259.37735162,0.00013,2]
[327847081,1716556240351,-1023268.83267899,0.00013,2]
[327847082,1716556240363,-73520.82043845,0.00013,2]
[327847083,1716556240395,-7500.45083114,0.00013,2]
[327847084,1716556240407,-1499.999998,0.00013,2]
[327847086,1716556240871,-390.58889562,0.00013,2]
[327847088,1716556240883,-583.34000013,0.00013,2]
[327847092,1716556240966,-3266.48382435,0.00013,2]
[327847093,1716556241089,-10294.68204313,0.00013,2]
[327847094,1716556242008,-251.336,0.00013,2]
[327847145,1716556243294,-571724.17990536,0.00013,2]
[327847148,1716556243766,-0.35343913,0.00013,2]
[327847161,1716556243974,-2518.10575749,0.00013,2]
[327847163,1716556243986,-861668.86008615,0.00013,2]
[327847165,1716556243996,-254.453,0.00013,2]
[327847167,1716556244006,-213.0,0.00013,2]
[327847169,1716556244016,-258.823,0.00013,2]
[327847171,1716556244025,-263.0,0.00013,2]
[327847173,1716556244035,-285.153,0.00013,2]
[327847175,1716556244045,-161.0,0.00013,2]
[327847177,1716556244055,-161.927,0.00013,2]
[327847179,1716556244065,-150.0,0.00013,2]
[327847180,1716556244076,-163.593,0.00013,2]
[327847181,1716556244089,-250.0,0.00013,2]
[327847182,1716556244098,-156.494,0.00013,2]
[327847183,1716556244108,-276.571,0.00013,2]
[327847184,1716556244119,-194.7,0.00013,2]
[327847185,1716556244129,-299.50428625,0.00013,2]
[327847186,1716556244139,-224.072,0.00013,2]
[327847187,1716556244150,-235.98,0.00013,2]
[327847188,1716556244160,-192.0,0.00013,2]
[327847189,1716556244171,-166.0,0.00013,2]
[327847190,1716556244180,-150.232,0.00013,2]
[327847191,1716556244190,-150.361,0.00013,2]
[327847192,1716556244199,-167.933,0.00013,2]
[327847193,1716556244209,-246.304,0.00013,2]
[327847194,1716556244219,-5136.0,0.00013,2]
[327847195,1716556244228,-975.0,0.00013,2]
[327847196,1716556244238,-613.0,0.00013,2]
[327847197,1716556244248,-1644.0,0.00013,2]
[327847198,1716556244258,-439.0,0.00013,2]
[327847199,1716556244268,-1291.507,0.00013,2]
[327847200,1716556244278,-1211.0,0.00013,2]
[327847201,1716556244288,-163.531,0.00013,2]
[327847202,1716556244298,-2396.0,0.00013,2]
[327847203,1716556244308,-151.063,0.00013,2]
[327847204,1716556244318,-809.0,0.00013,2]
[327847205,1716556244329,-193.906,0.00013,2]
[327847206,1716556244338,-204.986,0.00013,2]
[327847207,1716556244348,-215.0,0.00013,2]
[327847208,1716556244358,-1650.0,0.00013,2]
[327847209,1716556244368,-249.011,0.00013,2]
[327847210,1716556244378,-1147.167,0.00013,2]
[327847211,1716556244388,-3163.0,0.00013,2]
[327847212,1716556244400,-11075.0,0.00013013,2]
[327847213,1716556244414,-500.0,0.00013014,2]
[327847214,1716556244425,-500.0,0.00013014,2]
[327847215,1716556244436,-500.0,0.00013014,2]
[327847216,1716556244447,-500.0,0.00013014,2]
[327847217,1716556244475,-500.0,0.00013014,2]
[327847218,1716556244497,-500.0,0.00013014,2]